bitfinex-derivatives/quotes_BTCF0:USTF0_20240913
["timestamp","ask_amount","ask_price","bid_price","bid_amount"]
[1726188818787,0.014,58130.0,58129.0,0.086011]
[1726188818997,0.086006,58132.0,58130.0,0.086009]
[1726188819181,0.086006,58132.0,58130.0,0.1545527]
[1726188820085,0.086006,58132.0,58130.0,0.086009]
[1726188820781,0.086006,58132.0,58131.0,0.05139989]
[1726188820987,0.086006,58132.0,58130.0,0.086009]
[1726188821188,0.086006,58132.0,58131.0,0.05140021]
[1726188821592,0.086006,58132.0,58131.0,0.05139555]
[1726188821793,0.095006,58132.0,58131.0,0.05139569]
[1726188822001,0.095006,58132.0,58130.0,0.087009]
[1726188822294,0.107006,58132.0,58131.0,0.086008]
[1726188822493,0.108006,58132.0,58131.0,0.087008]
[1726188822991,0.108006,58132.0,58131.0,0.13939974]
[1726188823291,0.107006,58132.0,58131.0,0.13839974]
[1726188823495,0.107006,58132.0,58131.0,0.087008]
[1726188825093,0.108006,58132.0,58131.0,0.088008]
[1726188825798,0.108006,58132.0,58131.0,0.15651949]
[1726188829101,0.13920227,58132.0,58131.0,0.15651017]
[1726188830603,0.13920227,58132.0,58131.0,0.15650837]
[1726188830791,0.022,58132.0,58131.0,0.088008]
[1726188831700,0.022,58132.0,58131.0,0.11950809]
[1726188832997,0.18,58133.0,58131.0,0.11950809]
[1726188833198,0.18,58133.0,58132.0,0.086006]
[1726188834404,0.181,58133.0,58132.0,0.086006]
[1726188834705,0.181,58133.0,58132.0,0.30286894]
[1726188834905,0.18,58133.0,58132.0,0.30286894]
[1726188835103,0.182,58133.0,58132.0,0.30386894]
[1726188835606,0.182,58133.0,58132.0,0.21808958]
[1726188835908,0.182,58133.0,58132.0,0.21908958]
[1726188836601,0.182,58133.0,58132.0,0.32180467]
[1726188836808,0.182,58133.0,58132.0,0.32218386]
[1726188837115,0.182,58133.0,58132.0,0.21908958]
[1726188837494,0.182,58133.0,58132.0,0.37735624]
[1726188838909,0.182,58133.0,58132.0,0.088006]
[1726188840214,0.002,58133.0,58132.0,0.088006]
[1726188840504,0.002,58133.0,58132.0,0.448806]
[1726188840706,0.002,58133.0,58132.0,0.5176267]
[1726188841503,0.002,58133.0,58132.0,0.448806]
[1726188841700,0.002,58133.0,58132.0,1.564886]
[1726188841893,0.002,58133.0,58132.0,1.563886]
[1726188843603,0.002,58133.0,58132.0,1.63266436]
[1726188843801,0.002,58133.0,58132.0,1.563886]
[1726188844707,0.002,58133.0,58132.0,1.63265412]
[1726188846716,0.002,58133.0,58132.0,1.03265412]
[1726188847015,0.002,58133.0,58132.0,1.25278761]
[1726188847209,0.002,58133.0,58132.0,0.73670761]
[1726188847516,0.002,58133.0,58132.0,1.25278761]
[1726188848012,0.002,58133.0,58132.0,1.25277696]
[1726188849511,0.002,58133.0,58132.0,1.25276528]
[1726188849905,0.002,58133.0,58132.0,0.73668528]
[1726188853804,0.002,58133.0,58132.0,0.447806]
[1726188862026,0.06696991,58135.0,58134.0,0.086003]
[1726188862223,0.06696991,58135.0,58134.0,0.3750719]
[1726188862622,0.06696991,58135.0,58134.0,0.7358719]
[1726188862924,0.00672778,58135.0,58134.0,0.7358719]
[1726188863527,0.00672778,58135.0,58134.0,0.3750719]
[1726188863715,0.00872778,58135.0,58134.0,0.7378719]
[1726188864115,0.00872778,58135.0,58134.0,0.3770719]
[1726188864324,0.00872778,58135.0,58134.0,0.7378719]
[1726188866528,0.08562778,58135.0,58134.0,0.7378719]
[1726188867619,0.17162978,58135.0,58134.0,0.6518689]
[1726188867820,0.24792978,58135.0,58134.0,0.6518689]
[1726188868320,0.24792978,58135.0,58134.0,0.13306966]
[1726188868321,0.60872978,58135.0,58134.0,0.13306966]
[1726188869026,0.60872978,58135.0,58134.0,0.002]
[1726188869925,0.24792978,58135.0,58134.0,0.002]
[1726188870123,0.60872978,58135.0,58134.0,0.002]
[1726188871020,0.63970531,58135.0,58134.0,0.002]
[1726188875819,0.6818291,58135.0,58134.0,0.002]
[1726188876629,0.27890531,58135.0,58134.0,0.002]
[1726188876937,0.27890531,58135.0,58134.0,0.08792506]
[1726188877134,0.27890531,58135.0,58134.0,0.21901177]
[1726188877432,0.27890531,58135.0,58134.0,0.08792506]
[1726188877635,0.36490731,58135.0,58134.0,0.002]
[1726188879635,0.72570731,58135.0,58134.0,0.002]
[1726188880337,0.63970531,58135.0,58134.0,0.002]
[1726188881433,0.27890531,58135.0,58134.0,0.002]
[1726188881833,0.35250531,58135.0,58134.0,0.002]
[1726188885329,0.002,58135.0,58134.0,0.32908763]
[1726188885532,0.002,58135.0,58134.0,0.43228288]
[1726188885838,0.002,58135.0,58134.0,0.21908763]
[1726188886729,0.002,58135.0,58134.0,0.25061591]
[1726188888846,0.002,58135.0,58134.0,0.25060456]
[1726188892044,0.15609073,58135.0,58134.0,0.11953128]
[1726188892438,0.25100427,58135.0,58134.0,0.11953128]
[1726188895348,0.09691354,58135.0,58134.0,0.11953128]
[1726188897045,0.09691354,58135.0,58134.0,0.088003]
[1726188899038,0.002,58135.0,58134.0,0.37658591]
[1726188899754,0.088002,58135.0,58134.0,0.29058291]
[1726188899941,0.088002,58135.0,58134.0,0.21907626]
[1726188899942,0.002,58135.0,58134.0,0.21907626]
[1726188900140,0.002,58135.0,58134.0,0.32219488]
[1726188900340,0.002,58135.0,58134.0,0.21907626]
[1726188900542,0.002,58135.0,58134.0,0.32219488]
[1726188900747,0.088002,58135.0,58134.0,0.13307326]
[1726188901451,1.290044,58135.0,58134.0,0.13307326]
[1726188901750,0.51604,58134.0,58125.0,0.10311862]
[1726188901954,0.4708,58126.0,58120.0,0.10311862]
[1726188902246,0.4708,58126.0,58118.0,0.10311862]
[1726188902247,0.086026,58119.0,58118.0,0.10311862]
[1726188902437,0.196026,58119.0,58117.0,0.086029]
[1726188902845,0.194026,58119.0,58117.0,0.086029]
[1726188903652,0.194026,58119.0,58118.0,0.003]
[1726188904053,0.194026,58119.0,58117.0,0.086029]
[1726188904254,0.194026,58119.0,58117.0,0.090029]
[1726188905148,0.194026,58119.0,58117.0,0.101029]
[1726188905549,0.194026,58119.0,58117.0,0.015]
[1726188905550,0.086027,58118.0,58117.0,0.015]
[1726188905851,0.083027,58118.0,58117.0,0.011]
[1726188906353,0.083027,58118.0,58117.0,0.0624767]
[1726188906543,0.083027,58118.0,58117.0,0.0664767]
[1726188906941,0.083027,58118.0,58117.0,0.011]
[1726188907145,1.200227,58118.0,58117.0,0.011]
[1726188907356,1.561027,58118.0,58109.0,0.0514767]
[1726188907558,1.561027,58118.0,58103.0,0.3276]
[1726188907559,0.11,58110.0,58107.0,0.086043]
[1726188907860,0.11,58108.0,58107.0,0.086043]
[1726188908150,0.06694707,58108.0,58107.0,0.086043]
[1726188908350,0.06194707,58108.0,58107.0,0.086043]
[1726188908549,0.14798907,58108.0,58102.0,0.3608]
[1726188908748,0.11,58103.0,58102.0,0.446851]
[1726188908949,0.0768,58111.0,58103.0,0.086048]
[1726188908950,0.086043,58107.0,58103.0,0.086048]
[1726188909143,0.096,58104.0,58103.0,0.086048]
[1726188910053,0.087,58104.0,58103.0,0.086048]
[1726188910451,0.086049,58103.0,58102.0,0.3748]
[1726188910754,0.086049,58103.0,58102.0,0.014]
[1726188910943,0.11,58103.0,58102.0,0.014]
[1726188911258,0.196049,58103.0,58102.0,0.014]
[1726188911641,0.196049,58103.0,58095.0,0.3608]
[1726188911642,0.086051,58102.0,58099.0,0.05138929]
[1726188911842,0.001,58104.0,58099.0,0.05138929]
[1726188911843,0.11,58100.0,58099.0,0.05138929]
[1726188912242,0.11,58100.0,58098.0,0.13744629]
[1726188912848,0.11,58100.0,58099.0,0.086055]
[1726188912849,0.108,58100.0,58099.0,0.086055]
[1726188913356,0.109,58100.0,58099.0,0.086055]
[1726188913652,0.11,58100.0,58099.0,0.086055]
[1726188914051,0.11,58100.0,58099.0,0.088055]
[1726188914258,0.11,58100.0,58099.0,0.13936395]
[1726188914754,0.109,58100.0,58099.0,0.13936395]
[1726188914954,0.11,58100.0,58099.0,0.13936395]
[1726188916258,0.11,58100.0,58099.0,0.088055]
[1726188920250,0.14131784,58100.0,58099.0,0.088055]
[1726188920651,0.002,58100.0,58099.0,0.088055]
[1726188923449,0.002,58100.0,58099.0,0.13936395]
[1726188924859,0.002,58100.0,58099.0,0.16999046]
[1726188925055,0.002,58100.0,58099.0,0.11868151]
[1726188928566,0.002,58100.0,58099.0,0.22868151]
[1726188928864,0.002,58100.0,58099.0,0.35815062]
[1726188929364,0.002,58100.0,58099.0,0.24815062]
[1726188930560,0.002,58100.0,58099.0,0.35815062]
[1726188932161,0.002,58100.0,58099.0,0.51272289]
[1726188933768,0.22694952,58107.0,58099.0,0.51272289]
[1726188933769,0.22694952,58107.0,58104.0,0.086047]
[1726188933972,0.22694952,58107.0,58106.0,0.08590264]
[1726188934171,0.22694952,58107.0,58106.0,0.12946911]
[1726188935473,0.23094952,58107.0,58106.0,0.12946911]
[1726188936163,0.23094952,58107.0,58106.0,0.31859624]
[1726188937166,0.22994952,58107.0,58106.0,0.31859624]
[1726188937473,0.23094952,58107.0,58106.0,0.31859624]
[1726188937872,0.23094952,58107.0,58106.0,0.21551411]
[1726188938262,0.114,58107.0,58106.0,0.21551411]
[1726188940276,0.114,58107.0,58106.0,0.37025979]
[1726188940571,0.114,58107.0,58106.0,0.37061498]
[1726188940978,0.114,58107.0,58106.0,0.40165402]
[1726188941464,0.114,58107.0,58106.0,0.28456998]
[1726188941667,0.200043,58107.0,58106.0,0.28456998]
[1726188942277,0.200043,58107.0,58106.0,0.12982434]
[1726188942575,0.200043,58107.0,58106.0,0.21586934]
[1726188943075,0.200043,58107.0,58106.0,0.37060554]
[1726188943284,0.200043,58107.0,58106.0,0.21586934]
[1726188950378,0.200043,58107.0,58106.0,0.086045]
[1726188950682,0.200043,58107.0,58106.0,0.21584544]
[1726188951178,0.200043,58107.0,58106.0,0.37058013]
[1726188952678,0.200043,58107.0,58106.0,0.21584544]
[1726188953087,0.15698949,58107.0,58106.0,0.21584544]
[1726188954982,0.15698949,58107.0,58106.0,0.23305558]
[1726188955188,0.51778949,58107.0,58106.0,0.12980044]
[1726188956883,0.15698949,58107.0,58106.0,0.12980044]
[1726188957077,0.51778949,58107.0,58106.0,0.12980044]
[1726188959094,0.51778949,58107.0,58097.0,0.3608]
[1726188959095,0.08605,58103.0,58100.0,0.086053]
[1726188959391,0.11,58101.0,58100.0,0.086053]
[1726188960382,0.196052,58101.0,58100.0,0.086053]
[1726188961584,0.196052,58101.0,58100.0,0.088053]
[1726188962082,0.196052,58101.0,58100.0,0.086053]
[1726188963090,0.196052,58101.0,58091.0,0.086066]
[1726188963091,0.086063,58094.0,58091.0,0.086066]
[1726188963282,0.11,58092.0,58090.0,0.3608]
[1726188963483,0.11,58092.0,58091.0,0.086067]
[1726188966192,0.11,58092.0,58091.0,0.21525213]
[1726188967794,0.11,58092.0,58091.0,0.12918513]
[1726188967993,0.14033909,58092.0,58083.0,0.10325514]
[1726188968197,0.11,58084.0,58083.0,0.10325514]
[1726188968385,0.196079,58084.0,58080.0,0.086083]
[1726188968786,0.086079,58083.0,58080.0,0.086083]
[1726188970293,0.086079,58083.0,58054.0,0.17200383]
[1726188970294,0.086097,58071.0,58054.0,0.17200383]
[1726188970490,0.086097,58071.0,58050.0,0.15467168]
[1726188970491,0.08611,58062.0,58060.0,0.00088]
[1726188970794,0.172226,58060.0,58059.0,0.05154332]
[1726188970990,0.196113,58060.0,58059.0,0.05154332]
[1726188971306,0.11,58060.0,58049.0,0.05140522]
[1726188971498,0.3608,58051.0,58048.0,0.05140522]
[1726188971805,0.11,58049.0,58046.0,0.05140522]
[1726188972104,0.11,58049.0,58044.0,0.0775]
[1726188972105,0.11,58049.0,58047.0,0.05140522]
[1726188972301,0.11,58048.0,58043.0,0.05140522]
[1726188972498,0.11,58048.0,58043.0,0.0812]
[1726188972499,0.3608,58046.0,58043.0,0.0812]
[1726188973897,0.39193932,58051.0,58043.0,0.277337]
[1726188973898,0.3608,58051.0,58043.0,0.277337]
[1726188974096,0.3608,58051.0,58043.0,0.167337]
[1726188974303,0.5408,58051.0,58043.0,0.0812]
[1726188974997,0.626927,58051.0,58043.0,0.0812]
[1726188976589,0.266127,58051.0,58043.0,0.0812]
[1726188977094,0.18,58051.0,58046.0,0.3608]
[1726188977297,0.3608,58052.0,58046.0,0.3608]
[1726188977497,0.3608,58059.0,58051.0,0.3608]
[1726188977684,0.18,58057.0,58052.0,0.0775]
[1726188977885,0.18,58053.0,58052.0,0.0775]
[1726188980199,0.1196712,58053.0,58052.0,0.0775]
[1726188980800,0.18,58057.0,58052.0,0.0775]
[1726188981002,0.448315,58059.0,58052.0,0.0775]
[1726188981300,0.626915,58059.0,58052.0,0.524424]
[1726188982100,0.266115,58059.0,58053.0,0.165223]
[1726188983207,0.18,58059.0,58053.0,0.0791]
[1726188983708,0.3608,58065.0,58053.0,0.0791]
[1726188983709,0.18,58060.0,58053.0,0.0791]
[1726188984405,0.18,58060.0,58057.0,0.086117]
[1726188984809,0.18,58060.0,58058.0,0.0756]
[1726188986304,0.3608,58065.0,58059.0,0.086113]
[1726188986305,0.18,58061.0,58059.0,0.086113]
[1726188991198,0.18,58061.0,58060.0,0.086113]
[1726188993310,0.18,58061.0,58060.0,0.13737813]
[1726188994308,0.18,58061.0,58060.0,0.086113]
[1726188994807,0.086113,58060.0,58059.0,0.06872843]
[1726188995212,0.18,58061.0,58058.0,0.0756]
[1726188995505,0.18,58061.0,58054.0,0.46313361]
[1726188995506,0.086116,58058.0,58054.0,0.46413361]
[1726188995707,0.3608,58059.0,58054.0,0.41215026]
[1726188995708,0.18,58055.0,58054.0,0.41215026]
[1726188995907,0.18,58055.0,58051.0,0.051355]
[1726188996101,0.626925,58052.0,58043.0,0.3608]
[1726188996301,0.18,58044.0,58043.0,0.3608]
[1726188996711,0.36208,58052.0,58043.0,0.3608]
[1726188996900,0.18,58046.0,58043.0,0.3608]
[1726188997510,0.18,58046.0,58045.0,0.086135]
[1726188999809,0.266134,58046.0,58043.0,0.3608]
[1726189000012,0.3608,58045.0,58037.0,0.3608]
[1726189000200,0.18,58041.0,58037.0,0.446947]
[1726189001009,0.08614,58042.0,58038.0,0.086145]
[1726189001213,0.090121,58055.0,58039.0,0.3608]
[1726189001214,0.086133,58047.0,58039.0,0.3608]
[1726189001406,0.03327688,58046.0,58042.0,0.08614]
[1726189001710,0.18,58049.0,58039.0,0.3608]
[1726189001913,0.03327591,58048.0,58046.0,0.086134]
[1726189002117,0.03327591,58047.0,58046.0,0.086134]
[1726189002321,0.18,58049.0,58046.0,0.086134]
[1726189002505,0.03327552,58048.0,58046.0,0.086134]
[1726189002813,0.18,58049.0,58039.0,0.3608]
[1726189003112,0.03327552,58048.0,58046.0,0.086133]
[1726189003415,0.18,58049.0,58046.0,0.086133]
[1726189004115,0.18,58049.0,58039.0,0.3608]
[1726189004116,0.3608,58052.0,58045.0,0.3608]
[1726189004316,0.03327385,58051.0,58045.0,0.3608]
[1726189004512,0.3608,58052.0,58051.0,0.086126]
[1726189004513,0.26598971,58052.0,58051.0,0.086126]
[1726189004715,0.26598971,58052.0,58051.0,0.36361739]
[1726189005217,0.0818,58057.0,58051.0,0.36361739]
[1726189005218,0.08612,58056.0,58051.0,0.36361739]
[1726189005516,0.086122,58054.0,58053.0,0.10310913]
[1726189005729,0.266122,58054.0,58053.0,0.22970413]
[1726189006316,0.266122,58054.0,58053.0,0.12588349]
[1726189007502,0.18,58054.0,58053.0,0.12588349]
[1726189008114,0.266122,58054.0,58053.0,0.12588349]
[1726189008516,0.11230093,58057.0,58053.0,0.12588349]
[1726189008826,0.086122,58054.0,58048.0,0.10310913]
[1726189009009,0.086122,58054.0,58052.0,0.086125]
[1726189009208,0.086122,58054.0,58053.0,0.12541155]
[1726189009406,0.266122,58054.0,58053.0,0.12541155]
[1726189009616,1.382882,58054.0,58053.0,0.21133546]
[1726189010317,1.382882,58054.0,58053.0,0.08592391]
[1726189011017,1.382882,58054.0,58047.0,0.18924113]
[1726189011018,0.086123,58053.0,58052.0,0.08592391]
[1726189012216,0.18,58054.0,58052.0,0.08592452]
[1726189012412,0.086125,58052.0,58051.0,0.08592452]
[1726189012616,0.086125,58052.0,58051.0,0.21139548]
[1726189014118,0.086125,58052.0,58051.0,0.08592452]
[1726189014515,0.086125,58052.0,58051.0,0.17205052]
[1726189014715,0.086125,58052.0,58051.0,0.2975341]
[1726189014915,0.3608,58056.0,58055.0,0.08612]
[1726189016224,0.446919,58056.0,58055.0,0.08612]
[1726189017627,0.3608,58056.0,58055.0,0.08612]
[1726189019425,0.43625515,58056.0,58055.0,0.08612]
[1726189020820,0.07545515,58056.0,58055.0,0.08612]
[1726189021023,0.15283288,58056.0,58055.0,0.08612]
[1726189021217,0.03327331,58056.0,58055.0,0.08612]
[1726189022123,0.07545253,58056.0,58055.0,0.08612]
[1726189022318,0.11956616,58057.0,58056.0,0.086119]
[1726189022723,0.11956616,58058.0,58057.0,0.086117]
[1726189022925,0.15283535,58058.0,58057.0,0.086117]
[1726189023131,0.11956616,58058.0,58057.0,0.086117]
[1726189023333,0.03326919,58058.0,58053.0,0.18]
[1726189023529,0.03326919,58057.0,58056.0,0.086119]
[1726189024134,0.11950484,58060.0,58059.0,0.086114]
[1726189024333,0.11950484,58060.0,58053.0,0.18]
[1726189024334,0.52919764,58063.0,58060.0,0.086112]
[1726189024526,0.07544582,58062.0,58060.0,0.086112]
[1726189024728,0.07544582,58061.0,58060.0,0.086112]
[1726189025222,0.0332692,58061.0,58060.0,0.086112]
[1726189025637,0.086116,58059.0,58056.0,0.086118]
[1726189025830,0.086116,58059.0,58057.0,0.086117]
[1726189025831,0.0332692,58058.0,58057.0,0.086117]
[1726189026634,0.086116,58059.0,58057.0,0.29771542]
[1726189026830,0.086117,58057.0,58056.0,0.08592678]
[1726189027336,0.086117,58057.0,58052.0,0.3608]
[1726189027337,0.086119,58056.0,58055.0,0.08592678]
[1726189027536,0.086119,58056.0,58055.0,0.21168831]
[1726189028741,0.47847934,58063.0,58062.0,0.08611]
[1726189029037,0.11767934,58063.0,58062.0,0.08611]
[1726189029433,0.08611,58063.0,58062.0,0.08611]
[1726189030728,0.086112,58061.0,58060.0,0.0823]
[1726189033143,0.3608,58062.0,58060.0,0.0823]
[1726189033144,0.3608,58062.0,58061.0,0.086112]
[1726189034630,0.64309055,58062.0,58061.0,0.086112]
[1726189035138,0.64309055,58062.0,58060.0,0.1656]
[1726189035139,0.72920155,58062.0,58060.0,0.1656]
[1726189035341,0.12830824,58061.0,58060.0,0.1656]
[1726189036149,0.16155597,58061.0,58060.0,0.1656]
[1726189036552,0.36840294,58061.0,58060.0,0.1656]
[1726189037149,0.16155597,58061.0,58060.0,0.1656]
[1726189037852,0.086126,58052.0,58051.0,0.086126]
[1726189038040,0.16156997,58052.0,58051.0,0.165426]
[1726189038851,0.11939438,58052.0,58051.0,0.165426]
[1726189039050,0.23892699,58052.0,58051.0,0.165426]
[1726189039654,0.16157325,58052.0,58051.0,0.0793]
[1726189039847,0.22270974,58052.0,58051.0,0.0793]
[1726189040047,0.29815699,58052.0,58051.0,0.0793]
[1726189040345,0.16157325,58052.0,58051.0,0.0793]
[1726189040553,0.29815944,58052.0,58051.0,0.0793]
[1726189040756,0.24491358,58052.0,58051.0,0.0793]
[1726189041451,0.086126,58051.0,58045.0,0.3608]
[1726189041644,0.086126,58051.0,58047.0,0.08592678]
[1726189041645,0.446926,58051.0,58047.0,0.08592678]
[1726189042250,0.446926,58051.0,58045.0,0.3608]
[1726189042451,0.247528,58050.0,58046.0,0.21207757]
[1726189042652,0.247528,58050.0,58046.0,0.0860239]
[1726189042956,0.086132,58047.0,58046.0,0.0860239]
[1726189043250,0.18,58047.0,58044.0,0.08603054]
[1726189043452,0.18,58047.0,58043.0,0.08603054]
[1726189043453,0.086135,58045.0,58043.0,0.08603054]
[1726189043655,0.086135,58045.0,58042.0,0.08603054]
[1726189043860,0.08614,58042.0,58041.0,0.08603054]
[1726189044053,0.08614,58042.0,58041.0,0.21219491]
[1726189044255,0.08614,58042.0,58041.0,0.08603054]
[1726189045150,0.08614,58042.0,58040.0,0.08603054]
[1726189045456,0.08614,58042.0,58041.0,0.21210547]
[1726189046359,0.08614,58042.0,58041.0,0.08603054]
[1726189047156,0.11737994,58042.0,58041.0,0.08603054]
[1726189047459,0.11737994,58042.0,58040.0,0.08603054]
[1726189049262,0.11737994,58042.0,58039.0,0.17217454]
[1726189049455,0.07427887,58042.0,58039.0,0.17217454]
[1726189049650,0.07427887,58042.0,58040.0,0.086142]
[1726189050562,0.03123994,58042.0,58041.0,0.086141]
[1726189050766,0.00128,58046.0,58038.0,0.2575]
[1726189050949,0.03080481,58049.0,58045.0,0.18]
[1726189051152,0.086123,58054.0,58050.0,0.086128]
[1726189051458,0.446924,58053.0,58050.0,0.086128]
[1726189051858,0.446924,58053.0,58046.0,0.0847]
[1726189051859,0.446924,58053.0,58052.0,0.086125]
[1726189053360,0.39180653,58053.0,58052.0,0.086125]
[1726189055962,0.03100653,58053.0,58052.0,0.446925]
[1726189056164,0.446916,58059.0,58055.0,0.086119]
[1726189056853,0.446916,58059.0,58056.0,0.086119]
[1726189058252,0.3608,58059.0,58056.0,0.086119]
[1726189058459,0.086116,58058.0,58056.0,0.086119]
[1726189060462,0.03229515,58059.0,58058.0,0.086116]
[1726189060666,0.03085515,58059.0,58058.0,0.15483013]
[1726189060975,0.004,58067.0,58064.0,0.086106]
[1726189061167,0.086101,58068.0,58064.0,0.086106]
[1726189061563,0.11737149,58068.0,58060.0,0.2616]
[1726189062465,0.03127049,58068.0,58067.0,0.086103]
[1726189062661,0.086099,58070.0,58067.0,0.086103]
[1726189063059,0.086099,58070.0,58060.0,0.33032325]
[1726189063060,0.086099,58070.0,58068.0,0.086101]
[1726189064262,0.39135683,58069.0,58068.0,0.086101]
[1726189065268,0.47745683,58069.0,58068.0,0.086101]
[1726189066675,0.65745683,58069.0,58068.0,0.086101]
[1726189071778,0.086105,58066.0,58064.0,0.086106]
[1726189072070,0.12829701,58065.0,58064.0,0.086106]
[1726189072468,0.12829669,58065.0,58062.0,0.3608]
[1726189072670,0.06176605,58068.0,58062.0,0.3608]
[1726189072671,0.12829669,58064.0,58062.0,0.3608]
[1726189072870,0.12829669,58063.0,58062.0,0.44691]
[1726189073475,0.0332654,58063.0,58062.0,0.44691]
[1726189074866,0.0332654,58063.0,58062.0,0.08611]
[1726189075072,0.0332654,58063.0,58062.0,0.44691]
[1726189076078,0.0332654,58063.0,58062.0,0.08611]
[1726189076376,0.0332654,58063.0,58062.0,0.44691]
[1726189076771,0.12829669,58063.0,58062.0,0.44691]
[1726189076992,0.0754372,58063.0,58062.0,0.44691]
[1726189077368,0.086107,58065.0,58064.0,0.086107]
[1726189077574,0.21440417,58065.0,58064.0,0.086107]
[1726189078082,0.24604534,58065.0,58064.0,0.086107]
[1726189079669,0.11774817,58065.0,58060.0,0.0816]
[1726189079985,0.11774817,58065.0,58062.0,0.3608]
[1726189080166,0.11774817,58065.0,58064.0,0.086107]
[1726189081278,0.03164117,58065.0,58064.0,0.086107]
[1726189081575,0.3648,58071.0,58070.0,0.086098]
[1726189081780,0.36208,58078.0,58073.0,0.086094]
[1726189081781,0.086093,58074.0,58073.0,0.086094]
[1726189081982,0.08609,58076.0,58074.0,0.086091]
[1726189082591,0.08609,58076.0,58075.0,0.086091]
[1726189083182,0.39253423,58078.0,58077.0,0.086088]
[1726189083569,0.47862023,58078.0,58073.0,0.086093]
[1726189083768,0.39253423,58078.0,58073.0,0.086093]
[1726189084378,0.086097,58071.0,58069.0,0.086098]
[1726189084582,0.086097,58071.0,58070.0,0.086098]
[1726189084780,0.086091,58075.0,58070.0,0.086098]
[1726189085276,0.086094,58074.0,58070.0,0.086098]
[1726189085678,0.08609,58076.0,58072.0,0.086095]
[1726189087485,0.086091,58075.0,58072.0,0.086095]
[1726189090685,0.086092,58074.0,58072.0,0.086095]
[1726189091389,0.086098,58071.0,58069.0,0.0861]
[1726189092087,0.57381423,58078.0,58071.0,0.086095]
[1726189092389,0.086093,58074.0,58071.0,0.086095]
[1726189092687,0.086094,58073.0,58071.0,0.086095]
[1726189092886,0.086095,58072.0,58071.0,0.086095]
[1726189096295,0.21438045,58072.0,58067.0,0.3416391]
[1726189096484,0.12828545,58071.0,58067.0,0.3416391]
[1726189096684,0.12828545,58070.0,58067.0,0.3416391]
[1726189096880,0.12828545,58069.0,58068.0,0.086101]
[1726189097791,0.11686277,58072.0,58071.0,0.086097]
[1726189098094,0.24514628,58072.0,58071.0,0.086097]
[1726189102104,0.11686277,58072.0,58071.0,0.086097]
[1726189109020,0.24514409,58072.0,58071.0,0.086097]
[1726189111527,0.24514409,58072.0,58071.0,0.06086375]
[1726189111720,0.15904909,58072.0,58071.0,0.06086375]
[1726189117231,0.03076777,58072.0,58071.0,0.06086375]
[1726189117426,0.086095,58073.0,58072.0,0.086095]
[1726189117626,0.086095,58073.0,58072.0,0.13777477]
[1726189117825,0.086089,58077.0,58076.0,0.086088]
[1726189120129,0.11651655,58077.0,58076.0,0.086088]
[1726189124030,0.24479757,58077.0,58076.0,0.06104555]
[1726189124230,0.30655593,58077.0,58076.0,0.06104555]
[1726189127140,0.30655586,58077.0,58076.0,0.06104555]
[1726189132247,0.11651655,58077.0,58076.0,0.06104555]
[1726189133336,0.086089,58076.0,58075.0,0.05167977]
[1726189134244,0.3608,58078.0,58074.0,0.13777077]
[1726189134245,0.086091,58075.0,58074.0,0.13777077]
[1726189135232,0.11,58075.0,58072.0,0.05167977]
[1726189135437,0.086094,58073.0,58072.0,0.05167977]
[1726189135640,0.086095,58072.0,58071.0,0.05167977]
[1726189136039,0.446895,58072.0,58071.0,0.05167977]
[1726189137342,0.446895,58072.0,58071.0,0.13777677]
[1726189137343,0.086095,58072.0,58071.0,0.13777677]
[1726189137542,0.086095,58072.0,58071.0,0.086097]
[1726189138744,0.086095,58072.0,58071.0,0.15485239]
[1726189139252,0.16152166,58072.0,58071.0,0.086097]
[1726189139548,0.21437377,58072.0,58071.0,0.086097]
[1726189140946,0.21437374,58072.0,58071.0,0.086097]
[1726189141735,0.21437374,58072.0,58071.0,0.06089978]
[1726189143851,0.24489398,58072.0,58071.0,0.06089978]
[1726189144350,0.24489398,58072.0,58067.0,0.086101]
[1726189144351,0.15879898,58072.0,58067.0,0.086101]
[1726189144541,0.15879898,58072.0,58070.0,0.086098]
[1726189144542,0.12827874,58071.0,58070.0,0.086098]
[1726189145348,0.21437574,58071.0,58070.0,0.086098]
[1726189147251,0.04301579,58071.0,58070.0,0.3160931]
[1726189147444,0.04301579,58071.0,58070.0,0.2299951]
[1726189148450,0.04301579,58071.0,58070.0,0.10313309]
[1726189148859,0.04301579,58071.0,58070.0,0.18923109]
[1726189149355,0.04301579,58071.0,58070.0,0.10313309]
[1726189149553,0.04301579,58071.0,58070.0,0.22967447]
[1726189150748,0.04301579,58071.0,58070.0,0.10313309]
[1726189154244,0.04301579,58071.0,58070.0,0.18923109]
[1726189155261,0.04301579,58071.0,58070.0,0.086098]
[1726189156051,0.04301579,58071.0,58070.0,0.21256739]
[1726189161164,0.3608,58074.0,58070.0,0.21256739]
[1726189161165,0.3608,58074.0,58073.0,0.086094]
[1726189161467,0.086092,58074.0,58073.0,0.21256339]
[1726189162769,0.21437131,58074.0,58068.0,0.10244692]
[1726189162959,0.12827931,58073.0,58068.0,0.10244692]
[1726189163154,0.03156101,58075.0,58067.0,0.0859]
[1726189163155,0.12827931,58072.0,58071.0,0.196097]
[1726189167168,0.07542698,58072.0,58071.0,0.196097]
[1726189167478,0.12827708,58072.0,58071.0,0.196097]
[1726189167782,0.08609,58076.0,58075.0,0.086091]
[1726189168079,0.21436692,58076.0,58075.0,0.086091]
[1726189169775,0.08609,58076.0,58075.0,0.086091]
[1726189177778,0.16151791,58076.0,58075.0,0.086091]
[1726189177980,0.21437089,58076.0,58075.0,0.086091]
[1726189178781,0.27612918,58076.0,58075.0,0.086091]
[1726189180183,0.21437089,58076.0,58075.0,0.086091]
[1726189180580,0.27612918,58076.0,58075.0,0.086091]
[1726189181680,0.63692918,58076.0,58075.0,0.086091]
[1726189181992,0.27612918,58076.0,58075.0,0.086091]
[1726189182287,0.57517089,58076.0,58075.0,0.086091]